fUSD/lending_fUSD_20251122
["ID","MTS","AMOUNT","RATE_DAILY","PERIOD"]
[394620886,1763793034679,-500.0,0.00016595,2]
[394620887,1763793034688,-500.0,0.00016595,2]
[394620888,1763793034698,-500.0,0.00016595,2]
[394620889,1763793034706,-500.0,0.00016595,2]
[394620890,1763793034716,-500.0,0.00016595,2]
[394620891,1763793034725,-690.41,0.00016595,2]
[394620892,1763793034734,-520.53313856,0.00016595,2]
[394620893,1763793034744,-500.0,0.00016595,2]
[394620894,1763793034753,-300.0,0.00016595,2]
[394620895,1763793034762,-706.37,0.00016595,2]
[394620896,1763793034771,-500.0,0.00016595,2]
[394620897,1763793034781,-500.0,0.00016595,2]
[394620898,1763793034791,-500.0,0.00016595,2]
[394620899,1763793034801,-268.0,0.00016595,2]
[394620900,1763793034810,-500.0,0.00016595,2]
[394620901,1763793034820,-500.0,0.00016595,2]
[394620902,1763793034829,-500.0,0.00016595,2]
[394620903,1763793034839,-500.0,0.00016595,2]
[394620904,1763793034849,-500.0,0.00016595,2]
[394620905,1763793034859,-1482.39,0.00016595,2]
[394620906,1763793034868,-500.0,0.00016595,2]
[394620907,1763793034879,-500.0,0.00016595,2]
[394620908,1763793034888,-500.0,0.00016595,2]
[394620909,1763793034898,-500.0,0.00016595,2]
[394620910,1763793034907,-500.0,0.00016595,2]
[394620911,1763793034918,-500.0,0.00016595,2]
[394620912,1763793034928,-500.0,0.00016595,2]
[394620913,1763793034937,-563.52,0.00016595,2]
[394620914,1763793034946,-784.87,0.00016595,2]
[394620915,1763793034955,-500.0,0.00016595,2]
[394620916,1763793034964,-753.02,0.00016595,2]
[394620917,1763793034973,-500.0,0.00016595,2]
[394620918,1763793034982,-500.0,0.00016595,2]
[394620919,1763793034991,-521.78839333,0.00016595,2]
[394620920,1763793035000,-500.0,0.00016595,2]
[394620921,1763793035009,-500.0,0.00016595,2]
[394620922,1763793035018,-500.0,0.00016595,2]
[394620923,1763793035027,-268.49487168,0.00016595,2]
[394620924,1763793035786,-235.60512832,0.00016595,2]
[394620925,1763793035796,-500.0,0.00016595,2]
[394620926,1763793035805,-500.0,0.00016595,2]
[394620927,1763793035814,-151.0,0.00016595,2]
[394620928,1763793035823,-151.0,0.00016595,2]
[394620929,1763793035833,-806.78,0.00016595,2]
[394620930,1763793035843,-151.0,0.00016595,2]
[394620931,1763793035852,-500.0,0.00016595,2]
[394620932,1763793035861,-260.580574,0.00016595,2]
[394620933,1763793035871,-500.0,0.00016595,2]
[394620934,1763793035882,-500.0,0.00016595,2]
[394620935,1763793035892,-1333.0,0.00016595,2]
[394620936,1763793035902,-500.0,0.00016595,2]
[394620937,1763793035911,-9290.08,0.00016595,2]
[394620938,1763793035921,-527.92,0.00016595,2]
[394620939,1763793035930,-518.33285801,0.00016595,2]
[394620940,1763793035939,-650.48,0.00016595,2]
[394620941,1763793035948,-500.0,0.00016595,2]
[394620942,1763793035957,-500.0,0.00016595,2]
[394620943,1763793035967,-650.08,0.00016595,2]
[394620944,1763793035976,-500.0,0.00016595,2]
[394620945,1763793035985,-500.0,0.00016595,2]
[394620946,1763793035994,-1487.07,0.00016595,2]
[394620947,1763793036003,-500.0,0.00016595,2]
[394620948,1763793036012,-500.0,0.00016595,2]
[394620949,1763793036021,-500.0,0.00016595,2]
[394620950,1763793036031,-1673.15,0.00016595,2]
[394620951,1763793036040,-500.0,0.00016595,2]
[394620952,1763793036049,-500.0,0.00016595,2]
[394620953,1763793036058,-598.17,0.00016595,2]
[394620954,1763793036067,-500.0,0.00016595,2]
[394620955,1763793036078,-943.59,0.00016595,2]
[394620956,1763793036087,-2370.68,0.00016595,2]
[394620957,1763793036098,-500.0,0.00016595,2]
[394620958,1763793036107,-500.0,0.00016595,2]
[394620959,1763793036118,-502.78,0.00016595,2]
[394620960,1763793036127,-500.0,0.00016595,2]
[394620961,1763793036137,-500.0,0.00016595,2]
[394620962,1763793036147,-1321.73,0.00016595,2]
[394620963,1763793036156,-950.13,0.00016595,2]
[394620964,1763793036166,-991.25,0.00016595,2]
[394620965,1763793036175,-500.0,0.00016595,2]
[394620966,1763793036184,-150.0,0.00016595,2]
[394620967,1763793036193,-500.0,0.00016595,2]
[394620968,1763793036202,-500.0,0.00016595,2]
[394620969,1763793036211,-500.0,0.00016595,2]
[394620970,1763793036220,-1058.25,0.00016595,2]
[394620971,1763793036229,-500.0,0.00016595,2]
[394620972,1763793036238,-500.0,0.00016595,2]
[394620973,1763793036248,-500.0,0.00016595,2]
[394620974,1763793036257,-1192.03,0.00016595,2]
[394620975,1763793036267,-500.0,0.00016595,2]
[394620976,1763793036276,-500.0,0.00016595,2]
[394620977,1763793036286,-500.0,0.00016595,2]
[394620978,1763793036295,-500.0,0.00016595,2]
[394620979,1763793036304,-1524.12,0.00016595,2]
[394620980,1763793036313,-150.0,0.00016595,2]
[394620981,1763793036322,-500.0,0.00016595,2]
[394620982,1763793036331,-500.0,0.00016595,2]
[394620983,1763793036344,-500.0,0.00016595,2]
[394620984,1763793036353,-500.0,0.00016595,2]
[394620985,1763793036363,-620.03244897,0.00016595,2]
[394620986,1763793036372,-500.0,0.00016595,2]
[394620987,1763793036383,-982.6,0.00016595,2]
[394620988,1763793036392,-500.0,0.00016595,2]
[394620989,1763793036401,-500.0,0.00016595,2]
[394620990,1763793036411,-500.0,0.00016595,2]
[394620991,1763793036423,-500.0,0.00016595,2]
[394620992,1763793036432,-500.0,0.00016596,2]
[394620993,1763793036441,-500.0,0.00016596,2]
[394620994,1763793036450,-500.0,0.00016596,2]
[394620995,1763793036459,-500.0,0.00016596,2]
[394620996,1763793036468,-500.0,0.00016596,2]
[394620997,1763793036478,-500.0,0.00016596,2]
[394620998,1763793036488,-500.0,0.00016596,2]
[394620999,1763793036497,-500.0,0.00016596,2]
[394621000,1763793036507,-500.0,0.00016596,2]
[394621001,1763793036516,-389.70236898,0.00016596,2]
[394621002,1763793036526,-500.0,0.00016596,2]
[394621003,1763793036535,-500.0,0.00016596,2]
[394621004,1763793036545,-500.0,0.00016596,2]
[394621005,1763793036554,-506.59546834,0.00016596,2]
[394621006,1763793036564,-500.0,0.00016596,2]
[394621007,1763793036574,-500.0,0.00016596,2]
[394621008,1763793036583,-500.0,0.00016596,2]
[394621009,1763793036592,-500.0,0.00016596,2]
[394621010,1763793036601,-500.0,0.00016596,2]
[394621011,1763793036610,-500.0,0.00016596,2]
[394621012,1763793036619,-500.0,0.00016596,2]
[394621013,1763793036628,-500.0,0.00016596,2]
[394621014,1763793036639,-281.67071889,0.00016596,2]
[394621015,1763793036649,-500.0,0.00016596,2]
[394621016,1763793036659,-500.0,0.00016596,2]
[394621017,1763793036668,-500.0,0.00016596,2]
[394621018,1763793036678,-500.0,0.00016596,2]
[394621019,1763793036688,-503.00224897,0.00016596,2]
[394621020,1763793036697,-500.0,0.00016596,2]
[394621021,1763793036707,-405.26529608,0.00016596,2]
[394621022,1763793036717,-500.0,0.00016596,2]
[394621023,1763793036726,-500.0,0.00016596,2]
[394621024,1763793036735,-500.0,0.00016596,2]
[394621025,1763793036744,-500.0,0.00016596,2]
[394621026,1763793036753,-500.0,0.00016596,2]
[394621027,1763793036763,-500.0,0.00016596,2]
[394621028,1763793036772,-500.0,0.00016596,2]
[394621029,1763793036781,-500.0,0.00016596,2]
[394621030,1763793036790,-500.0,0.00016596,2]
[394621031,1763793036800,-500.0,0.00016596,2]
[394621032,1763793036809,-425.83508998,0.00016596,2]
[394621033,1763793036818,-971.97,0.00016596,2]
[394621034,1763793036828,-500.0,0.00016596,2]
[394621035,1763793036845,-742.74,0.00016596,2]
[394621036,1763793036857,-500.0,0.00016596,2]
[394621037,1763793036866,-500.0,0.00016596,2]
[394621038,1763793036876,-500.0,0.00016596,2]
[394621039,1763793036886,-500.0,0.00016596,2]
[394621040,1763793036895,-500.0,0.00016596,2]
[394621041,1763793036904,-500.0,0.00016596,2]
[394621042,1763793036914,-546.49665015,0.00016596,2]
[394621043,1763793036924,-1192.74,0.00016596,2]
[394621044,1763793036934,-500.0,0.00016596,2]
[394621045,1763793036944,-1201.65,0.00016596,2]
[394621046,1763793036954,-500.0,0.00016596,2]
[394621047,1763793036964,-500.0,0.00016596,2]
[394621048,1763793036973,-238.61278333,0.00016596,2]
[394621049,1763793036982,-500.0,0.00016596,2]
[394621050,1763793036991,-500.0,0.00016596,2]
[394621051,1763793037000,-500.0,0.00016596,2]
[394621052,1763793037010,-503.28152362,0.00016596,2]
[394621053,1763793037019,-500.0,0.00016596,2]
[394621054,1763793037028,-500.0,0.00016596,2]
[394621055,1763793037037,-500.0,0.00016596,2]
[394621056,1763793037047,-511.53338736,0.00016596,2]
[394621057,1763793037056,-960.57,0.00016596,2]
[394621058,1763793037066,-508.8176842,0.00016596,2]
[394621059,1763793037075,-500.0,0.00016596,2]
[394621060,1763793037085,-475.75213404,0.00016596,2]
[394621061,1763793037099,-1060.42,0.00016596,2]
[394621062,1763793037114,-340.06589502,0.00016596,2]
[394621063,1763793037137,-159.93410498,0.00016596,2]
[394621064,1763793037148,-612.7078272,0.00016596,2]
[394621065,1763793037161,-500.0,0.00016596,2]
[394621066,1763793037175,-500.0,0.00016596,2]
[394621067,1763793037188,-500.0,0.00016596,2]
[394621068,1763793037201,-500.0,0.00016596,2]
[394621069,1763793037215,-500.0,0.00016596,2]
[394621070,1763793037227,-500.0,0.00016596,2]
[394621071,1763793037240,-500.0,0.00016596,2]
[394621072,1763793037251,-500.0,0.00016596,2]
[394621073,1763793037263,-500.0,0.00016596,2]
[394621074,1763793037276,-500.0,0.00016596,2]
[394621075,1763793037294,-500.0,0.00016596,2]
[394621076,1763793037307,-500.0,0.00016596,2]
[394621077,1763793037321,-500.0,0.00016596,2]
[394621078,1763793037335,-500.0,0.00016596,2]
[394621079,1763793037353,-500.0,0.00016596,2]
[394621080,1763793037366,-500.0,0.00016596,2]
[394621081,1763793037379,-1314.38,0.00016596,2]
[394621082,1763793037395,-500.0,0.00016596,2]
[394621083,1763793037408,-500.0,0.00016596,2]
[394621084,1763793037421,-500.0,0.00016596,2]
[394621085,1763793037435,-500.0,0.00016596,2]
[394621086,1763793037449,-188.08885769,0.00016596,2]
[394621087,1763793037460,-500.0,0.00016596,2]
[394621088,1763793037472,-417.12740813,0.00016596,2]
[394621089,1763793037484,-503.26,0.00016596,2]
[394621090,1763793037495,-500.0,0.00016596,2]
[394621091,1763793037507,-500.0,0.00016596,2]
[394621092,1763793037520,-500.0,0.00016596,2]
[394621093,1763793037536,-509.55451786,0.00016596,2]
[394621094,1763793037546,-858.11,0.00016596,2]
[394621095,1763793037557,-500.0,0.00016596,2]
[394621096,1763793037567,-500.0,0.00016596,2]
[394621097,1763793037580,-500.0,0.00016596,2]
[394621098,1763793037597,-500.0,0.00016596,2]
[394621099,1763793037609,-428.60804998,0.00016596,2]
[394621100,1763793037620,-500.0,0.00016596,2]
[394621101,1763793037632,-500.0,0.00016596,2]
[394621102,1763793037644,-500.0,0.00016596,2]
[394621103,1763793037661,-517.41793782,0.00016596,2]
[394621104,1763793037673,-500.0,0.00016596,2]
[394621105,1763793037684,-500.0,0.00016596,2]
[394621106,1763793037695,-500.0,0.00016596,2]
[394621107,1763793037707,-500.0,0.00016596,2]
[394621108,1763793037719,-500.0,0.00016596,2]
[394621109,1763793037730,-500.0,0.00016596,2]
[394621110,1763793037742,-500.0,0.00016596,2]
[394621111,1763793037754,-500.0,0.00016596,2]
[394621112,1763793037765,-463.97829408,0.00016596,2]
[394621113,1763793037777,-416.35387078,0.00016596,2]
[394621114,1763793037789,-1107.17,0.00016596,2]
[394621115,1763793037801,-500.0,0.00016596,2]
[394621116,1763793037813,-500.0,0.00016596,2]
[394621117,1763793037824,-406.93149399,0.00016596,2]
[394621119,1763793037836,-500.0,0.00016596,2]
[394621121,1763793037848,-500.0,0.00016596,2]
[394621123,1763793037860,-500.0,0.00016596,2]
[394621126,1763793037872,-500.0,0.00016596,2]
[394621128,1763793037884,-500.0,0.00016596,2]
[394621130,1763793037900,-500.0,0.00016596,2]
[394621132,1763793037912,-500.0,0.00016596,2]
[394621133,1763793037923,-500.0,0.00016596,2]
[394621134,1763793037935,-929.45,0.00016596,2]
[394621135,1763793037947,-500.0,0.00016596,2]
[394621137,1763793037958,-500.0,0.00016596,2]
[394621140,1763793037969,-638.6410731,0.00016596,2]
[394621142,1763793037980,-808.75,0.00016596,2]
[394621144,1763793037992,-500.0,0.00016596,2]
[394621146,1763793038004,-500.0,0.00016596,2]
[394621149,1763793038015,-650.98,0.00016596,2]
[394621151,1763793038028,-500.0,0.00016596,2]
[394621154,1763793038040,-500.0,0.00016596,2]
[394621156,1763793038052,-425.40851909,0.00016596,2]
[394621158,1763793038064,-946.99,0.00016596,2]
[394621160,1763793038075,-762.0,0.00016596,2]
[394621162,1763793038086,-650.43,0.00016596,2]
[394621165,1763793038098,-500.0,0.00016596,2]
[394621167,1763793038111,-500.0,0.00016596,2]
[394621169,1763793038122,-500.0,0.00016596,2]
[394621171,1763793038134,-1079.73,0.00016596,2]
[394621173,1763793038146,-520.78484154,0.00016596,2]
[394621176,1763793038157,-500.0,0.00016596,2]
[394621178,1763793038169,-693.77,0.00016596,2]
[394621180,1763793038181,-500.0,0.00016596,2]
[394621183,1763793038192,-500.0,0.00016596,2]
[394621185,1763793038204,-407.66480269,0.00016596,2]
[394621187,1763793038216,-906.71,0.00016596,2]
[394621189,1763793038228,-855.7,0.00016596,2]
[394621192,1763793038240,-418.98331999,0.00016596,2]
[394621194,1763793038252,-849.57,0.00016596,2]
[394621196,1763793038264,-500.0,0.00016596,2]
[394621199,1763793038276,-500.0,0.00016596,2]
[394621201,1763793038288,-728.32,0.00016596,2]
[394621203,1763793038300,-500.0,0.00016596,2]
[394621206,1763793038311,-500.0,0.00016596,2]
[394621208,1763793038322,-2178.6,0.00016596,2]
[394621210,1763793038333,-500.0,0.00016596,2]
[394621212,1763793038347,-736.45,0.00016596,2]
[394621214,1763793038359,-500.0,0.00016596,2]
[394621216,1763793038370,-402.45775921,0.00016596,2]
[394621217,1763793038383,-410.46323083,0.00016596,2]
[394621218,1763793038395,-500.0,0.00016596,2]
[394621220,1763793038406,-500.0,0.00016596,2]
[394621222,1763793038417,-500.0,0.00016596,2]
[394621223,1763793038431,-500.0,0.00016596,2]
[394621224,1763793038442,-1462.97,0.00016596,2]
[394621225,1763793038454,-500.0,0.00016596,2]
[394621226,1763793038466,-808.52,0.00016596,2]
[394621227,1763793038477,-500.0,0.00016596,2]
[394621228,1763793038488,-411.57604973,0.00016596,2]
[394621229,1763793038499,-500.0,0.00016596,2]
[394621230,1763793038511,-500.0,0.00016596,2]
[394621231,1763793038523,-500.0,0.00016596,2]
[394621232,1763793038535,-500.0,0.00016596,2]
[394621233,1763793038547,-500.0,0.00016596,2]
[394621234,1763793038559,-500.0,0.00016596,2]
[394621235,1763793038571,-720.77,0.00016596,2]
[394621236,1763793038582,-1107.13,0.00016596,2]
[394621237,1763793038594,-463.01953351,0.00016596,2]
[394621238,1763793038606,-500.0,0.00016596,2]
[394621239,1763793038621,-500.0,0.00016596,2]
[394621240,1763793038633,-500.0,0.00016596,2]
[394621241,1763793038645,-500.0,0.00016596,2]
[394621242,1763793038657,-500.0,0.00016596,2]
[394621243,1763793038669,-500.0,0.00016596,2]
[394621244,1763793038680,-950.8,0.00016596,2]
[394621245,1763793038692,-500.0,0.00016596,2]
[394621246,1763793038704,-500.0,0.00016596,2]
[394621247,1763793038716,-500.0,0.00016596,2]
[394621248,1763793038728,-195.21022348,0.00016596,2]
[394621249,1763793038739,-500.0,0.00016596,2]
[394621250,1763793038751,-415.8867928,0.00016596,2]
[394621251,1763793038762,-500.0,0.00016596,2]
[394621252,1763793038774,-500.0,0.00016596,2]
[394621253,1763793038785,-410.77027796,0.00016596,2]
[394621254,1763793038797,-500.0,0.00016596,2]
[394621255,1763793038808,-500.0,0.00016596,2]
[394621256,1763793038820,-500.0,0.00016596,2]
[394621257,1763793038831,-500.0,0.00016596,2]
[394621258,1763793038842,-500.0,0.00016596,2]
[394621259,1763793038853,-500.0,0.00016596,2]
[394621260,1763793038865,-667.31,0.00016596,2]
[394621261,1763793038876,-500.0,0.00016596,2]
[394621262,1763793038889,-500.0,0.00016596,2]
[394621263,1763793038901,-500.0,0.00016596,2]
[394621264,1763793038913,-500.0,0.00016596,2]
[394621265,1763793038925,-500.0,0.00016596,2]
[394621266,1763793038937,-348.24711689,0.00016596,2]
[394621267,1763793038948,-1310.18,0.00016596,2]
[394621268,1763793038959,-500.0,0.00016596,2]
[394621269,1763793038971,-843.14,0.00016596,2]
[394621270,1763793038982,-503.41241425,0.00016596,2]
[394621271,1763793038993,-500.0,0.00016596,2]
[394621272,1763793039005,-500.0,0.00016596,2]
[394621273,1763793039018,-500.0,0.00016596,2]
[394621274,1763793039029,-500.0,0.00016596,2]
[394621275,1763793039041,-418.55431668,0.00016596,2]
[394621276,1763793039053,-500.0,0.00016596,2]
[394621277,1763793039065,-617.77,0.00016596,2]
[394621278,1763793039076,-981.38,0.00016596,2]
[394621279,1763793039088,-778.73,0.00016596,2]
[394621280,1763793039100,-508.85895819,0.00016596,2]
[394621281,1763793039112,-500.0,0.00016596,2]
[394621282,1763793039124,-500.0,0.00016596,2]
[394621283,1763793039137,-411.41724952,0.00016596,2]
[394621284,1763793039149,-631.79,0.00016596,2]
[394621285,1763793039160,-500.0,0.00016596,2]
[394621286,1763793039171,-500.0,0.00016596,2]
[394621287,1763793039183,-468.53422449,0.00016596,2]
[394621288,1763793039195,-646.0,0.00016596,2]
[394621289,1763793039208,-500.0,0.00016596,2]
[394621290,1763793039220,-623.31538564,0.00016596,2]
[394621291,1763793039231,-500.0,0.00016596,2]
[394621292,1763793039243,-500.0,0.00016596,2]
[394621293,1763793039254,-1080.51,0.00016596,2]
[394621294,1763793039265,-410.58343064,0.00016596,2]
[394621295,1763793039277,-500.0,0.00016596,2]
[394621296,1763793039288,-500.0,0.00016596,2]
[394621297,1763793039300,-500.0,0.00016596,2]
[394621298,1763793039312,-221.42,0.00016596,2]
[394621299,1763793039324,-500.0,0.00016596,2]
[394621300,1763793039336,-500.0,0.00016596,2]
[394621301,1763793039350,-500.0,0.00016596,2]
[394621302,1763793039361,-500.0,0.00016596,2]
[394621303,1763793039372,-810.65,0.00016596,2]
[394621304,1763793039385,-500.0,0.00016596,2]
[394621305,1763793039396,-500.0,0.00016596,2]
[394621306,1763793039408,-500.0,0.00016596,2]
[394621307,1763793039419,-500.0,0.00016596,2]
[394621308,1763793039433,-562.68,0.00016596,2]
[394621309,1763793039444,-423.42308414,0.00016596,2]
[394621310,1763793039455,-483.84054999,0.00016596,2]
[394621311,1763793039478,-16.15945001,0.00016596,2]
[394621312,1763793039489,-500.0,0.00016596,2]
[394621313,1763793039500,-1072.94,0.00016596,2]
[394621314,1763793039511,-500.0,0.00016596,2]
[394621315,1763793039522,-500.0,0.00016596,2]
[394621316,1763793039533,-500.0,0.00016596,2]
[394621317,1763793039544,-597.17673974,0.00016596,2]
[394621318,1763793039555,-500.0,0.00016596,2]
[394621319,1763793039566,-504.47499065,0.00016596,2]
[394621320,1763793039576,-708.5,0.00016596,2]
[394621321,1763793039587,-500.0,0.00016596,2]
[394621322,1763793039597,-500.0,0.00016596,2]
[394621323,1763793039608,-409.32200833,0.00016596,2]
[394621324,1763793039619,-500.0,0.00016596,2]
[394621325,1763793039630,-500.0,0.00016596,2]
[394621326,1763793039643,-407.18979103,0.00016596,2]
[394621327,1763793039654,-500.0,0.00016596,2]
[394621328,1763793039665,-500.0,0.00016596,2]
[394621329,1763793039676,-500.0,0.00016596,2]
[394621330,1763793039687,-1028.91,0.00016596,2]
[394621331,1763793039698,-500.0,0.00016596,2]
[394621332,1763793039709,-500.0,0.00016596,2]
[394621333,1763793039720,-500.0,0.00016596,2]
[394621334,1763793039730,-500.0,0.00016596,2]
[394621335,1763793039741,-1066.54,0.00016596,2]
[394621336,1763793039752,-500.0,0.00016596,2]
[394621337,1763793039762,-500.0,0.00016596,2]
[394621338,1763793039773,-500.0,0.00016596,2]
[394621339,1763793039783,-579.78846375,0.00016596,2]
[394621340,1763793039794,-500.0,0.00016596,2]
[394621341,1763793039805,-500.0,0.00016596,2]
[394621342,1763793039815,-956.89,0.00016596,2]
[394621343,1763793039827,-500.0,0.00016596,2]
[394621344,1763793039837,-500.0,0.00016596,2]
[394621345,1763793039848,-500.0,0.00016596,2]
[394621346,1763793039859,-500.0,0.00016596,2]
[394621347,1763793039869,-500.0,0.00016596,2]
[394621348,1763793039880,-500.0,0.00016596,2]
[394621349,1763793039892,-338.82992638,0.00016596,2]
[394621350,1763793039902,-500.0,0.00016596,2]
[394621351,1763793039914,-500.0,0.00016596,2]
[394621352,1763793039926,-500.0,0.00016596,2]
[394621353,1763793039938,-500.0,0.00016596,2]
[394621354,1763793039951,-500.0,0.00016596,2]
[394621355,1763793039962,-582.52,0.00016596,2]
[394621356,1763793039972,-500.0,0.00016596,2]
[394621357,1763793039983,-5867.86,0.00016596,2]
[394621358,1763793039992,-500.0,0.00016596,2]
[394621359,1763793040002,-500.0,0.00016596,2]
[394621360,1763793040012,-500.0,0.00016596,2]
[394621361,1763793040022,-1019.2,0.00016596,2]
[394621362,1763793040032,-500.0,0.00016596,2]
[394621363,1763793040042,-500.0,0.00016596,2]
[394621364,1763793040052,-500.0,0.00016596,2]
[394621365,1763793040062,-1032.08,0.00016596,2]
[394621366,1763793040524,-500.0,0.00016596,2]
[394621367,1763793040548,-500.0,0.00016596,2]
[394621368,1763793040573,-500.0,0.00016596,2]
[394621369,1763793040595,-549.87,0.00016596,2]
[394621370,1763793040606,-892.2,0.00016596,2]
[394621371,1763793040615,-500.0,0.00016596,2]
[394621372,1763793040625,-500.0,0.00016596,2]
[394621373,1763793040636,-775.37,0.00016596,2]
[394621374,1763793040645,-500.0,0.00016596,2]
[394621375,1763793040655,-519.95,0.00016596,2]
[394621376,1763793040665,-500.0,0.00016596,2]
[394621377,1763793040674,-536.29324613,0.00016596,2]
[394621378,1763793040683,-650.35,0.00016596,2]
[394621379,1763793040692,-754.23,0.00016596,2]
[394621380,1763793040701,-500.0,0.00016596,2]
[394621381,1763793040711,-500.0,0.00016596,2]
[394621382,1763793040720,-500.0,0.00016596,2]
[394621383,1763793040729,-500.0,0.00016596,2]
[394621384,1763793040739,-500.0,0.00016596,2]
[394621385,1763793040748,-1033.19,0.00016596,2]
[394621386,1763793040757,-500.0,0.00016596,2]
[394621387,1763793040767,-500.0,0.00016596,2]
[394621388,1763793040786,-1377.26,0.00016596,2]
[394621389,1763793040796,-500.0,0.00016596,2]
[394621390,1763793040806,-500.0,0.00016596,2]
[394621391,1763793040816,-500.0,0.00016596,2]
[394621392,1763793040825,-500.0,0.00016596,2]
[394621393,1763793040835,-758.28,0.00016596,2]
[394621394,1763793040844,-500.0,0.00016596,2]
[394621395,1763793040854,-500.0,0.00016596,2]
[394621396,1763793040863,-500.0,0.00016596,2]
[394621397,1763793040873,-731.12,0.00016596,2]
[394621398,1763793040882,-500.0,0.00016596,2]
[394621399,1763793040896,-500.0,0.00016596,2]
[394621400,1763793040906,-752.86,0.00016596,2]
[394621401,1763793040915,-500.0,0.00016596,2]
[394621402,1763793040925,-500.0,0.00016596,2]
[394621403,1763793040934,-151.0,0.00016596,2]
[394621404,1763793040943,-167.717858,0.00016596,2]
[394621405,1763793040953,-644.35,0.00016596,2]
[394621406,1763793040963,-818.91,0.00016596,2]
[394621407,1763793040972,-500.0,0.00016596,2]
[394621408,1763793040982,-1038.73,0.00016596,2]
[394621409,1763793040992,-500.0,0.00016596,2]
[394621410,1763793041001,-508.47062465,0.00016596,2]
[394621411,1763793041011,-645.8048526,0.00016596,2]
[394621412,1763793041020,-500.0,0.00016596,2]
[394621413,1763793041030,-518.09047042,0.00016596,2]
[394621414,1763793041040,-500.0,0.00016596,2]
[394621415,1763793041050,-412.11449509,0.00016596,2]
[394621416,1763793041060,-500.0,0.00016596,2]
[394621417,1763793041070,-700.12,0.00016596,2]
[394621418,1763793041080,-862.18,0.00016596,2]
[394621419,1763793041090,-500.0,0.00016596,2]
[394621420,1763793041099,-500.0,0.00016596,2]
[394621421,1763793041109,-500.0,0.00016596,2]
[394621422,1763793041119,-500.0,0.00016596,2]
[394621423,1763793041128,-627.65,0.00016596,2]
[394621424,1763793041142,-500.0,0.00016596,2]
[394621425,1763793041153,-500.0,0.00016596,2]
[394621426,1763793041164,-500.0,0.00016596,2]
[394621427,1763793041173,-500.0,0.00016596,2]
[394621428,1763793041185,-500.0,0.00016596,2]
[394621429,1763793041196,-949.81,0.00016596,2]
[394621430,1763793041206,-500.0,0.00016596,2]
[394621431,1763793041216,-500.0,0.00016596,2]
[394621432,1763793041225,-335.21568987,0.00016596,2]
[394621433,1763793041243,-164.78431013,0.00016596,2]
[394621434,1763793041253,-121.32769425,0.00016596,2]
[394621435,1763793041285,-378.67230575,0.00016596,2]
[394621436,1763793041295,-334.21568987,0.00016596,2]
[394621437,1763793041307,-165.78431013,0.00016596,2]
[394621438,1763793041317,-500.0,0.00016596,2]
[394621439,1763793041328,-1048.66,0.00016596,2]
[394621440,1763793041338,-82.50533386,0.00016596,2]